bitfinex-derivatives/quotes_BTCF0:USTF0_20241015
["timestamp","ask_amount","ask_price","bid_price","bid_amount"]
[1728968308306,0.07621,65631.0,65629.0,0.076212]
[1728968308507,0.12,65630.0,65629.0,0.076212]
[1728968309211,0.12,65630.0,65629.0,0.04541085]
[1728968309418,0.12,65630.0,65624.0,0.0106]
[1728968309419,0.12,65630.0,65626.0,0.04541085]
[1728968309713,0.12,65627.0,65625.0,0.04541085]
[1728968310099,0.12,65627.0,65624.0,0.04541085]
[1728968310304,0.4808,65625.0,65624.0,0.12162785]
[1728968311811,0.4818,65625.0,65624.0,0.12162785]
[1728968312011,0.559017,65625.0,65624.0,0.12162785]
[1728968312311,0.559017,65625.0,65624.0,0.06640557]
[1728968312511,0.559017,65625.0,65624.0,0.02099472]
[1728968312705,0.076218,65624.0,65622.0,0.07622]
[1728968312911,0.076218,65624.0,65621.0,0.0106]
[1728968312912,0.076221,65622.0,65621.0,0.0207589]
[1728968313114,0.076221,65621.0,65619.0,0.076224]
[1728968313412,0.12,65622.0,65621.0,0.076221]
[1728968313715,0.12,65622.0,65621.0,0.076621]
[1728968314015,1.621,65622.0,65621.0,0.076621]
[1728968314520,1.62,65622.0,65621.0,0.076621]
[1728968314707,1.622,65622.0,65621.0,0.076621]
[1728968314907,1.69822,65622.0,65621.0,0.076621]
[1728968316714,2.05902,65622.0,65621.0,0.076621]
[1728968318619,2.05802,65622.0,65621.0,0.076621]
[1728968319023,0.55802,65622.0,65621.0,0.076621]
[1728968319320,0.55702,65622.0,65621.0,0.076621]
[1728968320118,0.56202,65622.0,65621.0,0.076621]
[1728968320421,0.57002,65622.0,65621.0,0.076621]
[1728968321215,0.57002,65622.0,65621.0,0.0004]
[1728968321420,0.69002,65622.0,65621.0,0.0004]
[1728968321717,0.57002,65622.0,65621.0,0.0004]
[1728968324514,0.69002,65622.0,65621.0,0.0004]
[1728968325535,0.57002,65622.0,65621.0,0.0004]
[1728968330616,0.69002,65622.0,65621.0,0.0004]
[1728968332325,0.3738,65622.0,65621.0,0.24215657]
[1728968332515,0.4938,65622.0,65621.0,0.24215657]
[1728968332716,0.4938,65622.0,65621.0,0.076621]
[1728968332916,0.4938,65622.0,65621.0,0.12216526]
[1728968334720,0.4938,65622.0,65621.0,0.076621]
[1728968341021,0.57002,65622.0,65621.0,0.076621]
[1728968350029,0.69002,65622.0,65617.0,0.02042874]
[1728968350224,0.076226,65617.0,65616.0,0.04564852]
[1728968350426,0.076226,65617.0,65615.0,0.0106]
[1728968350427,0.076227,65616.0,65615.0,0.04562479]
[1728968350622,0.076228,65615.0,65613.0,0.0329]
[1728968350928,0.076229,65614.0,65613.0,0.0329]
[1728968351134,0.076229,65614.0,65613.0,0.04916081]
[1728968357925,0.0035,65622.0,65613.0,0.16916081]
[1728968358128,0.3608,65623.0,65622.0,0.07622]
[1728968358336,0.3608,65623.0,65622.0,0.19662]
[1728968358640,0.3608,65623.0,65622.0,0.22812]
[1728968360639,0.3668,65623.0,65622.0,0.22812]
[1728968361029,0.3326239,65623.0,65622.0,1.28528]
[1728968361437,0.015,65623.0,65622.0,1.28528]
[1728968362128,0.015,65623.0,65622.0,1.30186517]
[1728968362538,0.00228646,65628.0,65627.0,0.076214]
[1728968362740,0.00228646,65628.0,65627.0,0.196614]
[1728968364039,0.02728646,65628.0,65627.0,0.196614]
[1728968366533,0.02728646,65628.0,65627.0,0.653734]
[1728968366935,0.02728646,65628.0,65627.0,1.253734]
[1728968367239,0.02728646,65628.0,65627.0,1.614534]
[1728968367446,0.02728646,65628.0,65627.0,1.253734]
[1728968368746,0.02728646,65628.0,65627.0,0.653734]
[1728968370140,0.02728646,65628.0,65627.0,1.253734]
[1728968370344,0.02728646,65628.0,65627.0,1.614534]
[1728968370345,0.025,65628.0,65627.0,1.614534]
[1728968370532,0.025,65628.0,65627.0,1.734534]
[1728968370737,0.025,65628.0,65627.0,1.614534]
[1728968371344,0.00140167,65628.0,65627.0,1.734534]
[1728968373037,0.0035,65636.0,65627.0,1.734534]
[1728968373235,0.0035,65640.0,65639.0,0.0762]
[1728968373437,0.3608,65645.0,65639.0,0.1204]
[1728968373639,0.3608,65645.0,65644.0,0.0004]
[1728968374038,0.3608,65645.0,65644.0,0.076595]
[1728968375847,0.3718,65645.0,65644.0,0.077595]
[1728968376246,0.3718,65645.0,65644.0,0.078595]
[1728968376247,0.3788,65645.0,65644.0,0.078595]
[1728968376649,0.3718,65645.0,65644.0,0.077595]
[1728968376948,0.3708,65645.0,65644.0,0.076595]
[1728968377850,0.3708,65645.0,65644.0,0.09315557]
[1728968379045,0.01,65645.0,65644.0,0.09315557]
[1728968401876,0.13,65645.0,65644.0,0.09315557]
[1728968402063,0.01,65645.0,65644.0,0.09315557]
[1728968404569,0.01,65645.0,65644.0,0.21315557]
[1728968405467,0.01,65645.0,65644.0,0.33315557]
[1728968405671,0.01,65645.0,65644.0,0.21315557]
[1728968406074,0.01,65645.0,65644.0,0.25866697]
[1728968407072,0.01,65645.0,65644.0,0.21315557]
[1728968415176,0.01,65645.0,65644.0,0.28919156]
[1728968416690,0.01,65645.0,65644.0,0.21315557]
[1728968418180,0.01,65645.0,65644.0,0.09315557]
[1728968418383,0.206193,65645.0,65644.0,0.09315557]
[1728968418574,0.206193,65645.0,65644.0,0.01696057]
[1728968419588,0.206193,65645.0,65644.0,0.07775507]
[1728968420284,0.206193,65645.0,65644.0,0.01696057]
[1728968420476,0.206193,65645.0,65644.0,0.07775507]
[1728968421175,0.206193,65645.0,65644.0,0.01696057]
[1728968424481,0.566993,65645.0,65644.0,0.01696057]
[1728968429895,0.206193,65645.0,65644.0,0.01696057]
[1728968430189,0.61377685,65645.0,65644.0,0.01696057]
[1728968432287,0.566993,65645.0,65644.0,0.01696057]
[1728968434991,0.61377614,65645.0,65644.0,0.01696057]
[1728968436994,0.61377627,65645.0,65644.0,0.01696057]
[1728968437196,0.566993,65645.0,65644.0,0.01696057]
[1728968438602,0.206193,65645.0,65644.0,0.01696057]
[1728968438795,0.566993,65645.0,65644.0,0.01696057]
[1728968443307,0.446993,65645.0,65644.0,0.09315557]
[1728968444409,0.3708,65645.0,65644.0,0.33315557]
[1728968444607,0.0035,65650.0,65649.0,0.076189]
[1728968444811,0.0035,65655.0,65649.0,0.18113753]
[1728968445013,0.076179,65658.0,65656.0,0.12]
[1728968445203,0.076179,65658.0,65657.0,0.0004]
[1728968446406,0.12295188,65658.0,65657.0,0.0004]
[1728968447913,0.13095188,65658.0,65657.0,0.0014]
[1728968448812,0.13095188,65658.0,65657.0,0.0024]
[1728968449212,0.61175188,65658.0,65657.0,0.0024]
[1728968449511,0.076185,65652.0,65644.0,0.0004]
[1728968449702,0.076188,65650.0,65649.0,0.0004]
[1728968450612,0.12297126,65650.0,65649.0,0.0004]
[1728968451012,0.12397126,65650.0,65649.0,0.0014]
[1728968451813,0.13197126,65650.0,65649.0,0.0024]
[1728968452109,0.085188,65650.0,65649.0,0.0024]
[1728968459223,0.13197202,65650.0,65649.0,0.0024]
[1728968461025,0.13197258,65650.0,65649.0,0.0024]
[1728968461617,0.29950116,65650.0,65649.0,0.0024]
[1728968461817,0.41950116,65650.0,65649.0,0.0024]
[1728968462016,0.076192,65646.0,65645.0,0.0106]
[1728968462222,0.076193,65645.0,65644.0,0.0004]
[1728968462529,1.71887758,65645.0,65644.0,0.0004]
[1728968462919,0.21887758,65645.0,65644.0,0.0004]
[1728968463523,1.71888045,65645.0,65644.0,0.0004]
[1728968463724,1.72188045,65645.0,65644.0,0.0004]
[1728968463920,1.88940903,65645.0,65644.0,0.0004]
[1728968464227,1.72188045,65645.0,65644.0,0.0004]
[1728968464913,1.72588045,65645.0,65644.0,0.0004]
[1728968465313,1.72588109,65645.0,65644.0,0.0004]
[1728968467422,1.679093,65645.0,65644.0,0.0004]
[1728968468026,0.179093,65645.0,65644.0,0.0004]
[1728968468613,1.679093,65645.0,65644.0,0.0004]
[1728968469115,0.179093,65645.0,65644.0,0.0004]
[1728968470122,0.539893,65645.0,65644.0,0.0004]
[1728968474429,0.474093,65645.0,65644.0,0.0004]
[1728968474628,0.443993,65645.0,65644.0,0.0004]
[1728968474833,0.563993,65645.0,65644.0,0.0004]
[1728968476131,0.443993,65645.0,65644.0,0.0004]
[1728968476332,0.49078138,65645.0,65639.0,0.0004]
[1728968476532,0.436999,65640.0,65639.0,0.0004]
[1728968476832,1.936999,65640.0,65639.0,0.0004]
[1728968477439,1.97433092,65640.0,65639.0,0.0004]
[1728968477624,1.97433092,65640.0,65639.0,0.0014]
[1728968478639,2.09433092,65640.0,65639.0,0.0014]
[1728968481535,2.14112459,65640.0,65639.0,0.0014]
[1728968482129,2.09433092,65640.0,65639.0,0.0014]
[1728968482332,2.056999,65640.0,65639.0,0.0014]
[1728968484541,2.07328645,65640.0,65639.0,0.0014]
[1728968488635,0.436999,65640.0,65639.0,0.1976]
[1728968489145,0.3608,65640.0,65639.0,0.0776]
[1728968494843,0.3608,65640.0,65639.0,0.09367492]
[1728968495342,0.436999,65640.0,65639.0,0.09327492]
[1728968497453,0.74331645,65640.0,65639.0,0.09327492]
[1728968498046,0.80864443,65640.0,65639.0,0.01707492]
[1728968498246,0.64111585,65640.0,65639.0,0.01707492]
[1728968500942,0.64111585,65640.0,65639.0,0.001]
[1728968503644,0.76111585,65640.0,65639.0,0.001]
[1728968503854,0.076206,65634.0,65633.0,0.0106]
[1728968504049,0.076211,65630.0,65629.0,0.0318]
[1728968504358,0.076214,65627.0,65624.0,0.076218]
[1728968504558,0.196214,65627.0,65624.0,0.076218]
[1728968504854,0.076219,65623.0,65620.0,0.117421]
[1728968505057,0.316221,65621.0,65620.0,0.0306]
[1728968505367,0.316221,65621.0,65616.0,0.0304]
[1728968505368,0.12,65621.0,65616.0,0.0304]
[1728968505550,0.12,65621.0,65616.0,0.01667791]
[1728968505551,0.4808,65617.0,65616.0,0.01667791]
[1728968505750,0.4808,65617.0,65614.0,0.076229]
[1728968505954,0.076228,65616.0,65614.0,0.09262157]
[1728968506347,0.4808,65617.0,65614.0,0.09262157]
[1728968506348,0.076228,65615.0,65614.0,0.09262157]
[1728968507148,0.076228,65615.0,65614.0,0.09562157]
[1728968507659,0.4808,65617.0,65615.0,0.076228]
[1728968507959,0.4808,65617.0,65616.0,0.0004]
[1728968509060,0.557026,65617.0,65616.0,0.0004]
[1728968509446,0.557026,65617.0,65616.0,0.0024]
[1728968514148,2.057026,65617.0,65616.0,0.0024]
[1728968523353,2.1008,65617.0,65610.0,0.0106]
[1728968523558,0.076236,65608.0,65607.0,0.0106]
[1728968523768,0.076236,65608.0,65602.0,0.0323]
[1728968523769,0.07624,65605.0,65602.0,0.0323]
[1728968523967,0.07624,65605.0,65602.0,0.108543]
[1728968523968,0.4808,65603.0,65602.0,0.108543]
[1728968524160,0.4808,65603.0,65602.0,0.12466246]
[1728968525364,0.3608,65603.0,65602.0,0.24466246]
[1728968525667,0.3618,65603.0,65602.0,0.25866246]
[1728968526365,0.001,65603.0,65602.0,0.25866246]
[1728968526565,0.001,65603.0,65602.0,0.27266246]
[1728968527760,0.001,65603.0,65602.0,0.33266246]
[1728968530368,0.001,65603.0,65602.0,0.15266246]
[1728968541993,0.001,65603.0,65602.0,0.34491764]
[1728968542287,0.001,65603.0,65602.0,0.26888165]
[1728968542885,0.001,65603.0,65602.0,0.44888165]
[1728968544703,0.001,65603.0,65602.0,0.26888165]
[1728968545701,0.001,65603.0,65602.0,0.26888179]
[1728968546703,0.001,65603.0,65602.0,0.23658179]
[1728968546893,0.181,65603.0,65602.0,0.19649673]
[1728968548499,0.181,65603.0,65602.0,0.31271792]
[1728968548697,0.257242,65603.0,65602.0,0.10504668]
[1728968549004,0.257242,65603.0,65602.0,0.08892614]
[1728968549398,0.257242,65603.0,65602.0,0.028]
[1728968552406,0.257242,65603.0,65602.0,0.104243]
[1728968553607,0.257242,65603.0,65602.0,0.028]
[1728968553814,0.001,65603.0,65602.0,0.104243]
[1728968554901,0.181,65603.0,65602.0,0.104243]
[1728968558203,0.181,65603.0,65602.0,0.14988722]
[1728968558404,0.181,65603.0,65602.0,0.104243]
[1728968558809,0.5418,65603.0,65602.0,0.1498885]
[1728968559105,0.5418,65603.0,65602.0,0.104243]
[1728968559304,0.5418,65603.0,65602.0,0.1498893]
[1728968563216,0.5418,65603.0,65602.0,0.104243]
[1728968563809,0.181,65603.0,65602.0,0.104243]
[1728968567419,0.257242,65603.0,65602.0,0.104243]
[1728968567815,0.197242,65603.0,65602.0,0.104243]
[1728968569220,0.558042,65603.0,65602.0,0.104243]
[1728968569718,0.558042,65603.0,65602.0,0.028]
[1728968576530,0.558042,65603.0,65602.0,0.07365652]
[1728968576823,0.558042,65603.0,65602.0,0.028]
[1728968577526,0.558042,65603.0,65602.0,0.07365652]
[1728968578529,0.558042,65603.0,65602.0,0.028]
[1728968581735,0.438042,65603.0,65602.0,0.028]
[1728968582525,0.077242,65603.0,65602.0,0.028]
[1728968582724,0.438042,65603.0,65602.0,0.028]
[1728968583035,0.438042,65603.0,65602.0,0.104243]
[1728968587036,0.3618,65603.0,65602.0,0.104243]
[1728968587335,0.0035,65612.0,65611.0,0.076233]
[1728968587640,0.437868,65616.0,65615.0,0.076228]
[1728968588034,0.437028,65616.0,65615.0,0.076628]
[1728968588539,0.3608,65616.0,65615.0,0.076628]
[1728968588931,0.0004,65617.0,65616.0,0.076227]
[1728968589237,0.0004,65617.0,65616.0,0.076627]
[1728968590036,0.0004,65617.0,65616.0,0.256627]
[1728968590629,0.0004,65617.0,65616.0,0.258627]
[1728968591036,0.1804,65617.0,65616.0,0.0024]
[1728968591231,0.076626,65617.0,65616.0,0.0024]
[1728968594638,0.0004,65617.0,65609.0,0.0106]
[1728968594838,0.977834,65610.0,65609.0,0.0106]
[1728968595038,0.076241,65604.0,65603.0,0.0106]
[1728968595238,0.076245,65601.0,65599.0,0.02696176]
[1728968595441,0.076249,65598.0,65596.0,0.07625]
[1728968595743,0.437049,65597.0,65596.0,0.07625]
[1728968597137,0.438049,65597.0,65596.0,0.028]
[1728968597538,1.938049,65597.0,65596.0,0.028]
[1728968598138,0.438049,65597.0,65591.0,0.3616]
[1728968598339,0.438049,65597.0,65590.0,0.0106]
[1728968598340,0.18,65592.0,65590.0,0.0106]
[1728968598639,0.18,65592.0,65587.0,0.0106]
[1728968598640,0.3608,65591.0,65587.0,0.0106]
[1728968598838,0.18,65588.0,65584.0,0.0106]
[1728968599038,0.18,65588.0,65581.0,0.04572371]
[1728968599342,0.18,65588.0,65580.0,0.0429]
[1728968599945,0.18,65588.0,65584.0,0.014]
[1728968600129,0.18,65588.0,65587.0,0.076261]
[1728968600745,0.181,65588.0,65587.0,0.076261]
[1728968602138,0.18,65588.0,65587.0,0.076261]
[1728968602343,0.5428,65588.0,65584.0,0.01603901]
[1728968602638,0.18,65585.0,65583.0,0.076265]
[1728968603333,0.076264,65584.0,65583.0,0.076265]
[1728968605846,0.077264,65584.0,65583.0,0.076265]
[1728968606444,0.001,65584.0,65583.0,0.076265]
[1728968607452,0.002,65584.0,65583.0,0.076265]
[1728968610643,0.002,65584.0,65583.0,0.256265]
[1728968610947,0.3608,65588.0,65587.0,0.076261]
[1728968611247,0.18,65596.0,65590.0,0.076257]
[1728968611750,0.18,65596.0,65590.0,0.076657]
[1728968612452,0.3618,65591.0,65590.0,0.084657]
[1728968613552,0.3628,65591.0,65590.0,0.085657]
[1728968615446,0.3628,65591.0,65590.0,0.10179792]
[1728968618449,0.002,65591.0,65590.0,0.10179792]
[1728968624660,0.002,65591.0,65590.0,0.28179792]
[1728968626361,0.002,65591.0,65590.0,0.10179792]
[1728968640163,0.002,65591.0,65590.0,0.14752163]
[1728968640359,0.002,65591.0,65590.0,0.10179792]
[1728968647567,0.002,65591.0,65590.0,0.16280047]
[1728968648272,0.002,65591.0,65590.0,0.10179792]
[1728968650466,0.002,65591.0,65590.0,0.162796]
[1728968651072,0.002,65591.0,65590.0,0.10179792]
[1728968651470,0.002,65591.0,65590.0,0.162796]
[1728968651776,0.122,65591.0,65590.0,0.10179792]
[1728968651965,0.1526,65591.0,65590.0,0.10179792]
[1728968652966,0.1526,65591.0,65590.0,0.02554092]
[1728968652967,0.228856,65591.0,65590.0,0.02554092]
[1728968657573,0.1526,65591.0,65590.0,0.10179792]
[1728968657969,0.122,65591.0,65590.0,0.10179792]
[1728968660981,0.198256,65591.0,65590.0,0.10179792]
[1728968663678,0.002,65591.0,65590.0,0.22179792]
[1728968664280,0.002,65591.0,65590.0,0.10179792]
[1728968664871,0.002,65591.0,65590.0,0.22179792]
[1728968674587,0.002,65591.0,65590.0,0.02554092]
[1728968674588,0.078256,65591.0,65590.0,0.02554092]
[1728968674790,0.198256,65591.0,65590.0,0.02554092]
[1728968675090,0.229956,65591.0,65590.0,0.02554092]
[1728968675596,1.729956,65591.0,65590.0,0.02554092]
[1728968675890,1.609956,65591.0,65590.0,0.02554092]
[1728968676191,1.729956,65591.0,65590.0,0.02554092]
[1728968677386,1.77678064,65591.0,65590.0,0.02554092]
[1728968678788,1.77678064,65591.0,65590.0,0.0094]
[1728968681692,2.13758064,65591.0,65590.0,0.0094]
[1728968683695,2.13758044,65591.0,65590.0,0.0094]
[1728968685399,2.090756,65591.0,65590.0,0.0094]
[1728968688797,2.548156,65591.0,65590.0,0.0094]
[1728968688997,3.148156,65591.0,65590.0,0.0094]
[1728968689615,2.548156,65591.0,65590.0,0.0094]
[1728968692119,3.148156,65591.0,65590.0,0.0094]
[1728968692524,3.19498274,65591.0,65590.0,0.0094]
[1728968693419,3.148156,65591.0,65590.0,0.0094]
[1728968693617,3.19498274,65591.0,65590.0,0.0094]
[1728968694125,3.3472716,65591.0,65590.0,0.0094]
[1728968694325,0.07626,65588.0,65587.0,0.0004]
[1728968694525,0.24308674,65588.0,65587.0,0.0004]
[1728968694723,0.70048674,65588.0,65587.0,0.0004]
[1728968694914,2.20048674,65588.0,65587.0,0.0004]
[1728968696028,1.74408893,65588.0,65587.0,0.0044]
[1728968696525,1.74508893,65588.0,65587.0,0.0054]
[1728968698027,1.69826,65588.0,65587.0,0.0054]
[1728968699528,2.75566,65588.0,65587.0,0.0054]
[1728968707329,2.75466,65588.0,65587.0,0.0014]
[1728968707530,2.75466,65588.0,65587.0,0.0004]
[1728968707531,1.7600911,65588.0,65587.0,0.0004]
[1728968708032,1.76009001,65588.0,65587.0,0.0004]
[1728968708222,1.71326,65588.0,65587.0,0.0004]
[1728968708423,1.76009,65588.0,65587.0,0.0004]
[1728968708623,1.71326,65588.0,65587.0,0.0004]
[1728968710231,1.71926,65588.0,65587.0,0.0004]
[1728968710921,1.91837973,65588.0,65587.0,0.0004]
[1728968711528,1.87154886,65588.0,65587.0,0.0004]
[1728968711731,1.76609078,65588.0,65587.0,0.0004]
[1728968712133,1.91833213,65588.0,65587.0,0.0004]
[1728968712432,1.76609078,65588.0,65587.0,0.0004]
[1728968714738,1.71926,65588.0,65587.0,0.0004]
[1728968729753,1.76609355,65588.0,65587.0,0.0004]
[1728968730154,1.88609355,65588.0,65582.0,0.0106]
[1728968730353,1.88609355,65588.0,65577.0,0.0368]
[1728968730354,0.076271,65578.0,65577.0,0.0368]
[1728968730653,0.076271,65578.0,65573.0,0.0332]
[1728968730654,0.076276,65574.0,65573.0,0.0332]
[1728968730854,0.60391205,65574.0,65573.0,0.0332]
[1728968731461,0.60391719,65574.0,65573.0,0.0332]
[1728968732951,0.60391719,65574.0,65573.0,0.0342]
[1728968733455,0.60391719,65574.0,65573.0,0.0362]
[1728968734059,0.48391719,65574.0,65573.0,0.0362]
[1728968734363,0.60391719,65574.0,65573.0,0.0362]
[1728968735956,0.62052746,65574.0,65573.0,0.0362]
[1728968737654,0.57368571,65574.0,65573.0,0.0362]
[1728968739449,0.437076,65574.0,65573.0,0.0362]
[1728968739762,0.557076,65574.0,65573.0,0.0362]
[1728968739950,0.3608,65574.0,65573.0,0.0362]
[1728968740148,0.3608,65574.0,65573.0,0.232477]
[1728968740352,0.4808,65574.0,65573.0,0.112477]
[1728968740847,0.3608,65574.0,65573.0,0.232477]
[1728968741361,0.261,65574.0,65573.0,0.232477]
[1728968743066,0.3608,65574.0,65573.0,0.232477]
[1728968743759,0.3608,65574.0,65573.0,0.24921939]
[1728968744062,0.3608,65574.0,65573.0,0.12921939]
[1728968744359,0.4808,65574.0,65573.0,0.12921939]
[1728968748163,0.4808,65574.0,65573.0,0.82673939]
[1728968748164,0.2111,65574.0,65573.0,0.82673939]
[1728968748463,0.076252,65595.0,65587.0,0.076261]
[1728968748464,0.00444,65588.0,65587.0,0.076261]
[1728968748661,0.3608,65595.0,65590.0,0.076257]
[1728968748662,0.12,65594.0,65590.0,0.076257]
[1728968748870,0.437052,65595.0,65594.0,0.12]
[1728968749057,0.437052,65595.0,65594.0,0.0004]
[1728968749255,0.437052,65595.0,65587.0,0.004]
[1728968749256,0.07626,65588.0,65587.0,0.004]
[1728968749557,0.55706,65588.0,65587.0,0.0004]
[1728968750658,2.05706,65588.0,65587.0,0.0004]
[1728968751565,2.05906,65588.0,65587.0,0.0004]
[1728968751750,2.11906,65588.0,65587.0,0.0004]
[1728968751956,2.12306,65588.0,65587.0,0.0004]
[1728968752859,2.16989277,65588.0,65587.0,0.0004]
[1728968753466,2.32181565,65588.0,65587.0,0.0004]
[1728968753967,2.16989277,65588.0,65587.0,0.0004]
[1728968754357,2.32181901,65588.0,65587.0,0.0004]
[1728968755261,2.32181837,65588.0,65587.0,0.0004]
[1728968755767,2.16989213,65588.0,65587.0,0.0004]
[1728968755971,2.32181837,65588.0,65587.0,0.0004]
[1728968756360,2.16989213,65588.0,65587.0,0.0004]
[1728968756769,2.32181837,65588.0,65587.0,0.0004]
[1728968757763,2.12306,65588.0,65587.0,0.0004]
[1728968758165,2.13935904,65588.0,65587.0,0.0004]
[1728968761977,0.076268,65581.0,65580.0,0.0036]
[1728968762265,0.076276,65574.0,65573.0,0.0036]
[1728968762466,0.076278,65573.0,65568.0,0.437882]
[1728968762971,0.076279,65572.0,65568.0,0.437882]
[1728968763473,0.07628,65571.0,65568.0,0.437882]
[1728968763669,0.07628,65571.0,65569.0,0.12969415]
[1728968764365,0.07628,65571.0,65569.0,0.13369415]
[1728968764568,0.076281,65570.0,65569.0,0.13369415]
[1728968764764,0.076281,65570.0,65569.0,0.02651215]
[1728968765160,0.076281,65570.0,65569.0,0.01]
[1728968765965,0.077281,65570.0,65569.0,0.01]
[1728968767367,0.141381,65570.0,65569.0,0.01]
[1728968771771,0.261381,65570.0,65569.0,0.01]
[1728968772173,0.261381,65570.0,65564.0,0.0071]
[1728968772174,0.381381,65570.0,65564.0,0.0071]
[1728968772377,0.076291,65561.0,65560.0,0.003601]
[1728968772677,1.74313353,65561.0,65560.0,1e-06]
[1728968773278,1.86313353,65561.0,65560.0,1e-06]
[1728968773670,1.696291,65561.0,65560.0,1e-06]
[1728968773978,1.756291,65561.0,65560.0,1e-06]
[1728968774180,0.076306,65548.0,65519.0,0.04568287]
[1728968774378,0.18,65544.0,65543.0,0.076312]
[1728968774870,0.256306,65548.0,65543.0,0.076312]
[1728968775179,0.256306,65548.0,65547.0,0.0004]
[1728968775477,0.257306,65548.0,65547.0,0.0004]
[1728968775882,0.076306,65548.0,65547.0,0.0004]
[1728968776175,0.077306,65548.0,65547.0,0.0004]
[1728968777166,0.078306,65548.0,65547.0,0.0004]
[1728968777975,0.002,65548.0,65547.0,0.076707]
[1728968778185,0.002,65548.0,65547.0,1.134387]
[1728968778576,0.002,65548.0,65547.0,1.196187]
[1728968779972,0.0036,65556.0,65547.0,1.196187]
[1728968780176,1.5,65561.0,65558.0,0.076295]
[1728968780177,0.0036,65559.0,65558.0,0.076295]
[1728968780483,0.0041,65565.0,65558.0,0.076295]
[1728968780484,0.3644,65568.0,65567.0,0.076284]
[1728968780669,0.076283,65569.0,65567.0,0.076684]
[1728968780871,0.076283,65569.0,65568.0,0.0004]
[1728968781969,0.081283,65569.0,65568.0,0.0004]
[1728968782481,0.082283,65569.0,65568.0,0.0004]
[1728968782686,0.266283,65569.0,65568.0,0.0004]
[1728968792494,0.627083,65569.0,65568.0,0.0004]
[1728968792884,0.266283,65569.0,65568.0,0.0004]
[1728968793086,0.627083,65569.0,65568.0,0.0004]
[1728968796590,0.266283,65569.0,65568.0,0.0004]
[1728968797291,0.01,65569.0,65568.0,0.076683]
[1728968801005,0.01,65569.0,65568.0,0.09297806]
[1728968804098,0.01,65569.0,65568.0,0.01669506]
[1728968804099,0.266282,65569.0,65568.0,0.01669506]
[1728968804291,0.627082,65569.0,65568.0,0.01669506]
[1728968804495,0.67392293,65569.0,65568.0,0.01669506]
[1728968804697,0.627082,65569.0,65568.0,0.01669506]
[1728968805200,0.627082,65569.0,65568.0,0.0004]
[1728968813202,2.127082,65569.0,65568.0,0.0004]
[1728968819613,2.487882,65569.0,65568.0,0.0004]
[1728968820004,2.5894625,65569.0,65568.0,0.0004]
[1728968820606,2.53472584,65569.0,65568.0,0.0004]
[1728968820801,2.487882,65569.0,65568.0,0.0004]
[1728968821004,2.53472594,65569.0,65568.0,0.0004]
[1728968823112,1.03472594,65569.0,65568.0,0.0004]
[1728968823826,0.97472594,65569.0,65568.0,0.0004]
[1728968824616,0.9747245,65569.0,65568.0,0.0004]
[1728968825416,0.5376425,65569.0,65568.0,0.0004]
[1728968825616,0.4176425,65569.0,65568.0,0.076683]
[1728968825923,0.0568425,65569.0,65568.0,0.076683]
[1728968827918,0.01,65569.0,65568.0,0.076683]
[1728968828125,0.01,65569.0,65568.0,0.09305174]
[1728968831624,0.0143,65576.0,65575.0,0.076275]
[1728968831823,0.10697,65580.0,65578.0,0.076271]
[1728968832021,0.10697,65580.0,65578.0,0.076671]
[1728968832224,0.10697,65580.0,65579.0,0.0004]
[1728968834616,0.13497,65580.0,65579.0,0.0014]
[1728968836421,0.0587,65580.0,65579.0,0.07767]
[1728968836625,0.028,65580.0,65579.0,0.07767]
[1728968839427,0.028,65580.0,65579.0,0.09792384]
[1728968839626,0.208,65580.0,65579.0,0.09792384]
[1728968843028,0.25483178,65580.0,65579.0,0.09792384]
[1728968847942,0.19483178,65580.0,65579.0,0.09792384]
[1728968848534,0.34668445,65580.0,65579.0,0.09792384]
[1728968848733,0.19483178,65580.0,65579.0,0.09792384]
[1728968849333,0.34670885,65580.0,65579.0,0.09792384]
[1728968850039,0.148,65580.0,65579.0,0.09792384]
[1728968850640,0.028,65580.0,65579.0,0.09792384]
[1728968852344,0.028,65580.0,65579.0,0.21792384]
[1728968853544,0.0218,65580.0,65579.0,1.63620384]
[1728968855135,0.0218,65580.0,65579.0,1.75620384]
[1728968855344,0.138948,65598.0,65579.0,1.75620384]
[1728968855345,0.0627,65598.0,65586.0,0.076262]
[1728968855545,0.0627,65598.0,65594.0,0.076253]
[1728968855546,0.0143,65595.0,65594.0,0.076253]
[1728968855744,0.07625,65597.0,65594.0,0.0004]
[1728968855941,0.07625,65597.0,65596.0,0.19625]
[1728968856250,0.07625,65597.0,65596.0,0.19665]
[1728968857449,0.031,65598.0,65597.0,0.076249]
[1728968857635,0.031,65598.0,65597.0,0.076649]
[1728968858354,0.04681847,65598.0,65597.0,0.076649]
[1728968858539,0.04681847,65598.0,65597.0,0.077649]
[1728968859548,0.04681847,65598.0,65597.0,0.078649]
[1728968859549,0.05581847,65598.0,65597.0,0.078649]
[1728968860940,0.05581847,65598.0,65597.0,0.09950758]
[1728968862153,0.076249,65597.0,65596.0,0.0004]
[1728968862351,0.17777136,65597.0,65596.0,0.0004]
[1728968862854,1.67777901,65597.0,65596.0,0.0004]
[1728968863356,1.68577901,65597.0,65596.0,0.0014]
[1728968863857,1.87377901,65597.0,65596.0,0.0024]
[1728968864053,1.87377901,65597.0,65594.0,0.0004]
[1728968864254,0.437052,65595.0,65594.0,0.0004]
[1728968864450,0.53858201,65595.0,65594.0,0.0004]
[1728968865053,0.437052,65595.0,65594.0,0.0004]
[1728968865548,0.446052,65595.0,65594.0,0.0024]
[1728968866357,0.446052,65595.0,65594.0,0.0014]
[1728968866560,0.457052,65595.0,65594.0,0.0024]